[Event "Titled Tuesday Blitz November 08 Early 2022"]
[White "Sreyas Payyappat"]
[Black "Sernecki, Franciszek"]
[WhiteFideId "46674969"]
[BlackFideId "1169297"]
[WhiteElo "2083"]
[BlackElo "2210"]
[Result "0-1"]
[Round "09"]
[TimeControl "180+1"]
[Date "2022.11.09"]
[WhiteClock "0:00:22"]
[BlackClock "0:02:07"]

1. e4 {[%clk 0:03:00]}  e6 {[%clk 0:02:58]} 2. d4 {[%clk 0:02:55]}  d5 {[%clk 0:02:59]} 3. Nc3 {[%clk 0:02:41]}  Bb4 {[%clk 0:02:48]} 4. e5 {[%clk 0:02:36]}  Ne7 {[%clk 0:02:46]} 5. a3 {[%clk 0:02:36]}  Bxc3+ {[%clk 0:02:47]} 6. bxc3 {[%clk 0:02:37]}  c5 {[%clk 0:02:48]} 7. Qg4 {[%clk 0:02:37]}  g6 {[%clk 0:02:48]} 8. Bd3 {[%clk 0:02:32]}  Qa5 {[%clk 0:02:49]} 9. Bd2 {[%clk 0:02:31]}  Qa4 {[%clk 0:02:50]} 10. Ra2 {[%clk 0:02:23]}  b6 {[%clk 0:02:48]} 11. Nf3 {[%clk 0:02:21]}  Ba6 {[%clk 0:02:45]} 12. O-O {[%clk 0:02:15]}  h5 {[%clk 0:02:39]} 13. Qg5 {[%clk 0:02:10]}  Bxd3 {[%clk 0:02:38]} 14. cxd3 {[%clk 0:02:11]}  Nf5 {[%clk 0:02:38]} 15. Qf6 {[%clk 0:02:06]}  Rf8 {[%clk 0:02:36]} 16. Ng5 {[%clk 0:02:03]}  Nd7 {[%clk 0:02:36]} 17. Nxe6 {[%clk 0:01:48]}  Nxf6 {[%clk 0:02:34]} 18. Nc7+ {[%clk 0:01:48]}  Kd7 {[%clk 0:02:34]} 19. Nxa8 {[%clk 0:01:49]}  Ng8 {[%clk 0:02:29]} 20. dxc5 {[%clk 0:01:44]}  Rxa8 {[%clk 0:02:28]} 21. Rb1 {[%clk 0:01:42]}  bxc5 {[%clk 0:02:21]} 22. h3 {[%clk 0:01:30]}  Kc6 {[%clk 0:02:10]} 23. Rab2 {[%clk 0:01:24]}  Qxa3 {[%clk 0:02:09]} 24. Rb7 {[%clk 0:01:24]}  Nge7 {[%clk 0:02:08]} 25. Bf4 {[%clk 0:01:21]}  Qa6 {[%clk 0:02:06]} 26. R7b2 {[%clk 0:01:14]}  Ng7 {[%clk 0:02:05]} 27. Bg5 {[%clk 0:01:13]}  Nc8 {[%clk 0:02:04]} 28. d4 {[%clk 0:01:09]}  Ne6 {[%clk 0:02:03]} 29. Be3 {[%clk 0:01:01]}  c4 {[%clk 0:02:02]} 30. f4 {[%clk 0:01:00]}  Nb6 {[%clk 0:02:02]} 31. g4 {[%clk 0:00:59]}  Nd7 {[%clk 0:02:02]} 32. f5 {[%clk 0:00:59]}  Nc7 {[%clk 0:02:02]} 33. Bf4 {[%clk 0:00:52]}  hxg4 {[%clk 0:02:03]} 34. hxg4 {[%clk 0:00:51]}  gxf5 {[%clk 0:02:04]} 35. gxf5 {[%clk 0:00:51]}  Rb8 {[%clk 0:02:05]} 36. Rxb8 {[%clk 0:00:46]}  Nxb8 {[%clk 0:02:06]} 37. Rxb8 {[%clk 0:00:34]}  Qa1+ {[%clk 0:02:03]} 38. Kf2 {[%clk 0:00:34]}  Qxc3 {[%clk 0:02:03]} 39. e6 {[%clk 0:00:24]}  fxe6 {[%clk 0:01:59]} 40. Rc8 {[%clk 0:00:16]}  Qxd4+ {[%clk 0:01:58]} 41. Be3 {[%clk 0:00:15]}  Qb2+ {[%clk 0:01:57]} 42. Kf3 {[%clk 0:00:15]}  exf5 {[%clk 0:01:58]} 43. Bf4 {[%clk 0:00:15]}  Qc3+ {[%clk 0:01:57]} 44. Kf2 {[%clk 0:00:15]}  Qd4+ {[%clk 0:01:57]} 45. Kf3 {[%clk 0:00:15]}  Qe4+ {[%clk 0:01:57]} 46. Kg3 {[%clk 0:00:15]}  Qe1+ {[%clk 0:01:53]} 47. Kf3 {[%clk 0:00:15]}  Qe7 {[%clk 0:01:53]} 48. Kg3 {[%clk 0:00:13]}  Kb7 {[%clk 0:01:52]} 49. Rxc7+ {[%clk 0:00:13]}  Qxc7 {[%clk 0:01:53]} 50. Bxc7 {[%clk 0:00:14]}  Kxc7 {[%clk 0:01:54]} 51. Kf4 {[%clk 0:00:14]}  c3 {[%clk 0:01:54]} 52. Ke3 {[%clk 0:00:14]}  c2 {[%clk 0:01:55]} 53. Kd3 {[%clk 0:00:15]}  f4 {[%clk 0:01:56]} 54. Kxc2 {[%clk 0:00:16]}  f3 {[%clk 0:01:57]} 55. Kd3 {[%clk 0:00:16]}  a5 {[%clk 0:01:58]} 56. Ke3 {[%clk 0:00:16]}  a4 {[%clk 0:01:59]} 57. Kxf3 {[%clk 0:00:17]}  a3 {[%clk 0:01:59]} 58. Ke3 {[%clk 0:00:18]}  a2 {[%clk 0:02:00]} 59. Kd4 {[%clk 0:00:19]}  Kd6 {[%clk 0:02:00]} 60. Kd3 {[%clk 0:00:18]}  a1=Q {[%clk 0:02:01]} 61. Kc2 {[%clk 0:00:19]}  Qd4 {[%clk 0:02:01]} 62. Kb3 {[%clk 0:00:19]}  Qc4+ {[%clk 0:02:01]} 63. Kb2 {[%clk 0:00:19]}  d4 {[%clk 0:02:02]} 64. Ka3 {[%clk 0:00:20]}  Qb5 {[%clk 0:02:02]} 65. Ka2 {[%clk 0:00:19]}  Qb4 {[%clk 0:02:01]} 66. Ka1 {[%clk 0:00:19]}  d3 {[%clk 0:02:02]} 67. Ka2 {[%clk 0:00:20]}  d2 {[%clk 0:02:03]} 68. Ka1 {[%clk 0:00:20]}  Kd5 {[%clk 0:02:04]} 69. Ka2 {[%clk 0:00:21]}  Kd4 {[%clk 0:02:05]} 70. Ka1 {[%clk 0:00:21]}  Kc3 {[%clk 0:02:06]} 71. Ka2 {[%clk 0:00:22]}  Qb3+ {[%clk 0:02:06]} 72. Ka1 {[%clk 0:00:22]}  d1=R# {[%clk 0:02:07]} 0-1


[Site "https://www.chess.com"]

[Event "Titled Tuesday Blitz November 08 Early 2022"]
[White "Svane, Rasmus"]
[Black "Artemiev, Vladislav"]
[WhiteFideId "4657101"]
[BlackFideId "24101605"]
[WhiteElo "2674"]
[BlackElo "2802"]
[Result "1-0"]
[Round "09"]
[TimeControl "180+1"]
[Date "2022.11.08"]
[WhiteClock "0:00:07"]
[BlackClock "0:00:01"]

1. Nf3 {[%clk 0:03:00]}  d5 {[%clk 0:02:58]} 2. g3 {[%clk 0:03:01]}  g6 {[%clk 0:02:57]} 3. Bg2 {[%clk 0:03:01]}  Bg7 {[%clk 0:02:57]} 4. d4 {[%clk 0:03:01]}  Nf6 {[%clk 0:02:57]} 5. O-O {[%clk 0:03:02]}  O-O {[%clk 0:02:56]} 6. c4 {[%clk 0:03:02]}  c6 {[%clk 0:02:56]} 7. Qb3 {[%clk 0:03:02]}  a5 {[%clk 0:02:55]} 8. Rd1 {[%clk 0:03:02]}  a4 {[%clk 0:02:53]} 9. Qb4 {[%clk 0:03:02]}  dxc4 {[%clk 0:02:42]} 10. Qxc4 {[%clk 0:03:03]}  Qa5 {[%clk 0:02:17]} 11. e3 {[%clk 0:02:46]}  Be6 {[%clk 0:02:05]} 12. Qe2 {[%clk 0:02:44]}  c5 {[%clk 0:02:01]} 13. Bd2 {[%clk 0:02:20]}  Qa6 {[%clk 0:01:52]} 14. Qxa6 {[%clk 0:02:11]}  Nxa6 {[%clk 0:01:53]} 15. Nc3 {[%clk 0:02:12]}  Nb4 {[%clk 0:01:05]} 16. dxc5 {[%clk 0:02:12]}  a3 {[%clk 0:00:52]} 17. bxa3 {[%clk 0:02:13]}  Rxa3 {[%clk 0:00:48]} 18. Nd4 {[%clk 0:02:10]}  Nd3 {[%clk 0:00:41]} 19. Ncb5 {[%clk 0:01:11]}  Ra4 {[%clk 0:00:39]} 20. Bxb7 {[%clk 0:00:53]}  Nxc5 {[%clk 0:00:34]} 21. Bc6 {[%clk 0:00:53]}  Rxa2 {[%clk 0:00:30]} 22. Rxa2 {[%clk 0:00:52]}  Bxa2 {[%clk 0:00:31]} 23. Bb4 {[%clk 0:00:52]}  Ne6 {[%clk 0:00:19]} 24. Bxe7 {[%clk 0:00:50]}  Nxd4 {[%clk 0:00:19]} 25. exd4 {[%clk 0:00:46]}  Rc8 {[%clk 0:00:17]} 26. d5 {[%clk 0:00:44]}  Bb3 {[%clk 0:00:10]} 27. Rd2 {[%clk 0:00:37]}  Ne4 {[%clk 0:00:07]} 28. Re2 {[%clk 0:00:35]}  Nf6 {[%clk 0:00:03]} 29. Na7 {[%clk 0:00:17]}  Rc7 {[%clk 0:00:02]} 30. Nb5 {[%clk 0:00:16]}  Rc8 {[%clk 0:00:02]} 31. Nd6 {[%clk 0:00:15]}  Rc7 {[%clk 0:00:02]} 32. Bd8 {[%clk 0:00:15]}  Ra7 {[%clk 0:00:02]} 33. Nc8 {[%clk 0:00:07]}  Ra1+ {[%clk 0:00:01]} 34. Kg2 {[%clk 0:00:07]}  Bxd5+ {[%clk 0:00:01]} 35. Bxd5 {[%clk 0:00:07]}  Nxd5 {[%clk 0:00:02]} 36. Re8+ {[%clk 0:00:06]}  Bf8 {[%clk 0:00:02]} 37. Ne7+ {[%clk 0:00:06]}  Nxe7 {[%clk 0:00:01]} 38. Bxe7 {[%clk 0:00:07]} 1-0


[Site "https://www.chess.com"]

[Event "Titled Tuesday Blitz November 08 Early 2022"]
[White "Tarnowska, Aleksandra"]
[Black "Butolo, Alexandru-Mircea"]
[WhiteFideId "1180967"]
[BlackFideId "1261649"]
[WhiteElo "1776"]
[BlackElo "1897"]
[Result "0-1"]
[Round "09"]
[TimeControl "180+1"]
[Date "2022.11.09"]
[WhiteClock "0:00:01"]
[BlackClock "0:00:18"]

1. e4 {[%clk 0:03:00]}  c5 {[%clk 0:02:59]} 2. Nf3 {[%clk 0:03:01]}  Nc6 {[%clk 0:02:57]} 3. Bb5 {[%clk 0:03:01]}  e6 {[%clk 0:02:54]} 4. O-O {[%clk 0:03:00]}  Nge7 {[%clk 0:02:54]} 5. c3 {[%clk 0:02:58]}  a6 {[%clk 0:02:54]} 6. Ba4 {[%clk 0:02:58]}  b5 {[%clk 0:02:51]} 7. Bc2 {[%clk 0:02:58]}  Bb7 {[%clk 0:02:49]} 8. d4 {[%clk 0:02:58]}  cxd4 {[%clk 0:02:49]} 9. cxd4 {[%clk 0:02:47]}  d5 {[%clk 0:02:49]} 10. e5 {[%clk 0:02:39]}  Ng6 {[%clk 0:02:48]} 11. Nc3 {[%clk 0:02:34]}  Be7 {[%clk 0:02:45]} 12. Ne2 {[%clk 0:02:33]}  O-O {[%clk 0:02:39]} 13. a3 {[%clk 0:02:26]}  Qb6 {[%clk 0:02:27]} 14. Be3 {[%clk 0:02:24]}  Na5 {[%clk 0:02:25]} 15. Bg5 {[%clk 0:01:45]}  Bxg5 {[%clk 0:02:16]} 16. Nxg5 {[%clk 0:01:46]}  Rac8 {[%clk 0:02:04]} 17. Qd3 {[%clk 0:01:35]}  Rc7 {[%clk 0:01:39]} 18. Qh3 {[%clk 0:01:33]}  h6 {[%clk 0:01:34]} 19. Bxg6 {[%clk 0:01:33]}  fxg6 {[%clk 0:01:33]} 20. Nxe6 {[%clk 0:01:33]}  Bc8 {[%clk 0:01:26]} 21. N2f4 {[%clk 0:01:30]}  Rxf4 {[%clk 0:01:24]} 22. Qg3 {[%clk 0:01:25]}  Bxe6 {[%clk 0:01:01]} 23. Qxf4 {[%clk 0:01:25]}  Rf7 {[%clk 0:01:01]} 24. Qg3 {[%clk 0:01:04]}  g5 {[%clk 0:00:59]} 25. Rfd1 {[%clk 0:00:57]}  Rf4 {[%clk 0:00:54]} 26. Qc3 {[%clk 0:00:29]}  Nc6 {[%clk 0:00:44]} 27. Rac1 {[%clk 0:00:23]}  Nxd4 {[%clk 0:00:42]} 28. Qe3 {[%clk 0:00:20]}  Re4 {[%clk 0:00:37]} 29. Qd3 {[%clk 0:00:05]}  Ne2+ {[%clk 0:00:35]} 30. Kh1 {[%clk 0:00:04]}  Nxc1 {[%clk 0:00:36]} 31. Rxc1 {[%clk 0:00:05]}  Qxf2 {[%clk 0:00:30]} 32. Qc3 {[%clk 0:00:05]}  Rc4 {[%clk 0:00:28]} 33. Qe1 {[%clk 0:00:03]}  Qxe1+ {[%clk 0:00:26]} 34. Rxe1 {[%clk 0:00:04]}  Re4 {[%clk 0:00:26]} 35. Rc1 {[%clk 0:00:03]}  Rxe5 {[%clk 0:00:26]} 36. g3 {[%clk 0:00:03]}  d4 {[%clk 0:00:26]} 37. Kg1 {[%clk 0:00:04]}  d3 {[%clk 0:00:25]} 38. Rd1 {[%clk 0:00:03]}  Bf5 {[%clk 0:00:20]} 39. g4 {[%clk 0:00:02]}  Bh7 {[%clk 0:00:17]} 40. Kf2 {[%clk 0:00:01]}  Re2+ {[%clk 0:00:18]} 41. Kf3 {[%clk 0:00:01]}  Rxb2 {[%clk 0:00:18]} 0-1


[Site "https://www.chess.com"]

[Event "Titled Tuesday Blitz November 08 Early 2022"]
[White "Tasev, Dejan"]
[Black "Orozbaev, Eldiar"]
[WhiteFideId "936618"]
[BlackFideId "13802240"]
[WhiteElo "2614"]
[BlackElo "2792"]
[Result "0-1"]
[Round "09"]
[TimeControl "180+1"]
[Date "2022.11.09"]
[WhiteClock "0:00:07"]
[BlackClock "0:00:09"]

1. e4 {[%clk 0:03:00]}  e6 {[%clk 0:02:58]} 2. d4 {[%clk 0:03:00]}  d5 {[%clk 0:02:59]} 3. Nc3 {[%clk 0:03:00]}  Nf6 {[%clk 0:02:59]} 4. e5 {[%clk 0:03:01]}  Nfd7 {[%clk 0:02:59]} 5. f4 {[%clk 0:03:01]}  c5 {[%clk 0:02:59]} 6. Nf3 {[%clk 0:03:02]}  Nc6 {[%clk 0:02:59]} 7. Be3 {[%clk 0:03:00]}  Qb6 {[%clk 0:02:59]} 8. Qd2 {[%clk 0:03:00]}  a6 {[%clk 0:02:58]} 9. Be2 {[%clk 0:02:59]}  Qa7 {[%clk 0:02:57]} 10. O-O {[%clk 0:02:57]}  b5 {[%clk 0:02:57]} 11. Nd1 {[%clk 0:02:55]}  cxd4 {[%clk 0:02:56]} 12. Nxd4 {[%clk 0:02:54]}  Nxd4 {[%clk 0:02:56]} 13. Bxd4 {[%clk 0:02:54]}  Bc5 {[%clk 0:02:57]} 14. c3 {[%clk 0:02:54]}  Bxd4+ {[%clk 0:02:55]} 15. cxd4 {[%clk 0:02:53]}  Nb6 {[%clk 0:02:54]} 16. b3 {[%clk 0:02:52]}  Bd7 {[%clk 0:02:54]} 17. Nf2 {[%clk 0:02:50]}  Rc8 {[%clk 0:02:43]} 18. Rac1 {[%clk 0:02:43]}  O-O {[%clk 0:02:42]} 19. Bd3 {[%clk 0:02:24]}  a5 {[%clk 0:02:35]} 20. Bb1 {[%clk 0:02:11]}  Rxc1 {[%clk 0:02:24]} 21. Rxc1 {[%clk 0:02:10]}  Rc8 {[%clk 0:02:25]} 22. Rxc8+ {[%clk 0:02:06]}  Nxc8 {[%clk 0:02:24]} 23. Qd3 {[%clk 0:01:40]}  g6 {[%clk 0:02:24]} 24. Ng4 {[%clk 0:01:38]}  Ne7 {[%clk 0:02:24]} 25. Nf6+ {[%clk 0:01:34]}  Kg7 {[%clk 0:02:24]} 26. Qc3 {[%clk 0:01:08]}  b4 {[%clk 0:01:58]} 27. Qc5 {[%clk 0:01:05]}  Qxc5 {[%clk 0:01:58]} 28. dxc5 {[%clk 0:01:06]}  Bb5 {[%clk 0:01:59]} 29. Kf2 {[%clk 0:01:03]}  Nc6 {[%clk 0:01:57]} 30. Ke3 {[%clk 0:01:00]}  h6 {[%clk 0:01:55]} 31. Ne8+ {[%clk 0:00:53]}  Kf8 {[%clk 0:01:40]} 32. Nd6 {[%clk 0:00:53]}  Bf1 {[%clk 0:01:35]} 33. Kf2 {[%clk 0:00:51]}  Ba6 {[%clk 0:01:35]} 34. g4 {[%clk 0:00:48]}  Ke7 {[%clk 0:01:34]} 35. h4 {[%clk 0:00:46]}  g5 {[%clk 0:01:33]} 36. fxg5 {[%clk 0:00:42]}  hxg5 {[%clk 0:01:34]} 37. h5 {[%clk 0:00:42]}  Nxe5 {[%clk 0:01:31]} 38. Kg3 {[%clk 0:00:41]}  d4 {[%clk 0:00:48]} 39. h6 {[%clk 0:00:36]}  d3 {[%clk 0:00:46]} 40. h7 {[%clk 0:00:31]}  Ng6 {[%clk 0:00:46]} 41. Ne4 {[%clk 0:00:27]}  f5 {[%clk 0:00:42]} 42. Nxg5 {[%clk 0:00:25]}  Kf6 {[%clk 0:00:39]} 43. Nf3 {[%clk 0:00:23]}  f4+ {[%clk 0:00:38]} 44. Kf2 {[%clk 0:00:23]}  e5 {[%clk 0:00:38]} 45. g5+ {[%clk 0:00:23]}  Kg7 {[%clk 0:00:34]} 46. c6 {[%clk 0:00:23]}  e4 {[%clk 0:00:28]} 47. c7 {[%clk 0:00:22]}  Ne7 {[%clk 0:00:17]} 48. Ne5 {[%clk 0:00:16]}  e3+ {[%clk 0:00:16]} 49. Ke1 {[%clk 0:00:15]}  d2+ {[%clk 0:00:15]} 50. Kd1 {[%clk 0:00:16]}  Nd5 {[%clk 0:00:11]} 51. Kc2 {[%clk 0:00:08]}  Nc3 {[%clk 0:00:10]} 52. h8=Q+ {[%clk 0:00:07]}  Kxh8 {[%clk 0:00:09]} 0-1


[Site "https://www.chess.com"]

[Event "Titled Tuesday Blitz November 08 Early 2022"]
[White "Ter-Sahakyan, Samvel"]
[Black "Madaminov, Mukhiddin"]
[WhiteFideId "13302531"]
[BlackFideId "14210703"]
[WhiteElo "2584"]
[BlackElo "2341"]
[Result "0-1"]
[Round "09"]
[TimeControl "180+1"]
[Date "2022.11.08"]
[WhiteClock "0:00:05"]
[BlackClock "0:00:26"]

1. d4 {[%clk 0:03:00]}  Nf6 {[%clk 0:02:59]} 2. Bg5 {[%clk 0:03:01]}  e6 {[%clk 0:02:50]} 3. Nd2 {[%clk 0:02:59]}  d5 {[%clk 0:02:45]} 4. e3 {[%clk 0:02:58]}  Be7 {[%clk 0:02:42]} 5. Bd3 {[%clk 0:02:56]}  c5 {[%clk 0:02:42]} 6. c3 {[%clk 0:02:56]}  Nc6 {[%clk 0:02:41]} 7. Ngf3 {[%clk 0:02:54]}  h6 {[%clk 0:02:42]} 8. Bh4 {[%clk 0:02:54]}  O-O {[%clk 0:02:40]} 9. O-O {[%clk 0:02:54]}  b6 {[%clk 0:02:39]} 10. Qe2 {[%clk 0:02:53]}  Bb7 {[%clk 0:02:39]} 11. Ne5 {[%clk 0:02:49]}  Nxe5 {[%clk 0:02:33]} 12. dxe5 {[%clk 0:02:49]}  Nd7 {[%clk 0:02:34]} 13. Bxe7 {[%clk 0:02:42]}  Qxe7 {[%clk 0:02:33]} 14. f4 {[%clk 0:02:41]}  f6 {[%clk 0:02:11]} 15. exf6 {[%clk 0:02:39]}  Rxf6 {[%clk 0:02:12]} 16. e4 {[%clk 0:02:19]}  c4 {[%clk 0:02:08]} 17. Bc2 {[%clk 0:02:18]}  Raf8 {[%clk 0:02:07]} 18. exd5 {[%clk 0:02:02]}  Qc5+ {[%clk 0:02:05]} 19. Kh1 {[%clk 0:01:57]}  exd5 {[%clk 0:02:02]} 20. Nf3 {[%clk 0:01:46]}  Qd6 {[%clk 0:01:56]} 21. Nd4 {[%clk 0:01:23]}  Rxf4 {[%clk 0:01:55]} 22. Rxf4 {[%clk 0:01:19]}  Rxf4 {[%clk 0:01:55]} 23. Re1 {[%clk 0:00:51]}  Nc5 {[%clk 0:01:46]} 24. Nf5 {[%clk 0:00:46]}  Qe6 {[%clk 0:01:05]} 25. Qd2 {[%clk 0:00:14]}  Rxf5 {[%clk 0:00:53]} 26. Bxf5 {[%clk 0:00:12]}  Qxf5 {[%clk 0:00:53]} 27. h3 {[%clk 0:00:13]}  Ne4 {[%clk 0:00:53]} 28. Qe3 {[%clk 0:00:12]}  Bc6 {[%clk 0:00:50]} 29. Kg1 {[%clk 0:00:12]}  Qg5 {[%clk 0:00:47]} 30. Qf3 {[%clk 0:00:11]}  Qf6 {[%clk 0:00:35]} 31. Qe3 {[%clk 0:00:11]}  Qe5 {[%clk 0:00:32]} 32. Rf1 {[%clk 0:00:10]}  Bd7 {[%clk 0:00:32]} 33. Qf3 {[%clk 0:00:09]}  Nf6 {[%clk 0:00:33]} 34. Qd1 {[%clk 0:00:07]}  Bf5 {[%clk 0:00:32]} 35. Qd2 {[%clk 0:00:07]}  Be4 {[%clk 0:00:32]} 36. Rf2 {[%clk 0:00:07]}  Qg3 {[%clk 0:00:32]} 37. Qd4 {[%clk 0:00:07]}  Nh5 {[%clk 0:00:31]} 38. Qd2 {[%clk 0:00:06]}  Qg5 {[%clk 0:00:29]} 39. Qe1 {[%clk 0:00:05]}  Nf4 {[%clk 0:00:28]} 40. Qe3 {[%clk 0:00:06]}  Nd3 {[%clk 0:00:27]} 41. Qxg5 {[%clk 0:00:05]}  hxg5 {[%clk 0:00:27]} 42. Rd2 {[%clk 0:00:06]}  Kf7 {[%clk 0:00:26]} 43. Kh2 {[%clk 0:00:06]}  Kf6 {[%clk 0:00:26]} 44. Kg3 {[%clk 0:00:06]}  b5 {[%clk 0:00:27]} 45. a3 {[%clk 0:00:05]}  a5 {[%clk 0:00:27]} 46. Re2 {[%clk 0:00:05]}  b4 {[%clk 0:00:26]} 47. axb4 {[%clk 0:00:05]}  axb4 {[%clk 0:00:26]} 48. Rd2 {[%clk 0:00:05]}  b3 {[%clk 0:00:26]} 49. Re2 {[%clk 0:00:05]}  Nf4 {[%clk 0:00:26]} 50. Rd2 {[%clk 0:00:05]}  Nxg2 {[%clk 0:00:26]} 0-1


[Site "https://www.chess.com"]

[Event "Titled Tuesday Blitz November 08 Early 2022"]
[White "Tharushi, T H D Niklesha"]
[Black "Izuzquiza Gonzalez, Javier"]
[WhiteFideId "9918264"]
[BlackFideId "3101029"]
[WhiteElo "1596"]
[BlackElo "2034"]
[Result "1-0"]
[Round "09"]
[TimeControl "180+1"]
[Date "2022.11.09"]
[WhiteClock "0:00:36"]
[BlackClock "0:00:10"]

1. e4 {[%clk 0:03:00]}  c5 {[%clk 0:02:59]} 2. Nf3 {[%clk 0:02:57]}  e6 {[%clk 0:02:59]} 3. d4 {[%clk 0:02:56]}  cxd4 {[%clk 0:03:00]} 4. Nxd4 {[%clk 0:02:57]}  a6 {[%clk 0:03:01]} 5. Nc3 {[%clk 0:02:49]}  Qc7 {[%clk 0:03:01]} 6. Be3 {[%clk 0:02:40]}  Bb4 {[%clk 0:03:01]} 7. Qd2 {[%clk 0:02:39]}  Nf6 {[%clk 0:03:00]} 8. f3 {[%clk 0:02:36]}  d5 {[%clk 0:03:00]} 9. exd5 {[%clk 0:02:31]}  Nxd5 {[%clk 0:03:00]} 10. Nde2 {[%clk 0:02:18]}  Nxe3 {[%clk 0:03:00]} 11. Qxe3 {[%clk 0:02:17]}  Nd7 {[%clk 0:03:01]} 12. O-O-O {[%clk 0:02:17]}  Nf6 {[%clk 0:02:59]} 13. Qf4 {[%clk 0:02:12]}  Qxf4+ {[%clk 0:02:55]} 14. Nxf4 {[%clk 0:02:11]}  O-O {[%clk 0:02:54]} 15. Na4 {[%clk 0:02:08]}  e5 {[%clk 0:02:24]} 16. Nb6 {[%clk 0:02:00]}  Rb8 {[%clk 0:02:08]} 17. Nfd5 {[%clk 0:01:57]}  Nxd5 {[%clk 0:02:00]} 18. Nxd5 {[%clk 0:01:58]}  Bc5 {[%clk 0:01:57]} 19. b4 {[%clk 0:01:54]}  Bd4 {[%clk 0:01:55]} 20. c3 {[%clk 0:01:53]}  Ba7 {[%clk 0:01:45]} 21. Bc4 {[%clk 0:01:50]}  Be6 {[%clk 0:01:40]} 22. Ne7+ {[%clk 0:01:49]}  Kh8 {[%clk 0:01:38]} 23. Bxe6 {[%clk 0:01:43]}  fxe6 {[%clk 0:01:39]} 24. Rd7 {[%clk 0:01:42]}  Be3+ {[%clk 0:01:22]} 25. Kb2 {[%clk 0:01:41]}  Bg5 {[%clk 0:01:08]} 26. Rhd1 {[%clk 0:01:40]}  Rfe8 {[%clk 0:01:02]} 27. Nc6 {[%clk 0:01:15]}  bxc6 {[%clk 0:01:00]} 28. Rc7 {[%clk 0:01:13]}  Rec8 {[%clk 0:00:55]} 29. Ra7 {[%clk 0:01:12]}  Ra8 {[%clk 0:00:54]} 30. Rb7 {[%clk 0:01:11]}  h5 {[%clk 0:00:51]} 31. Rdd7 {[%clk 0:01:10]}  Bf6 {[%clk 0:00:50]} 32. a4 {[%clk 0:01:08]}  a5 {[%clk 0:00:47]} 33. Kb3 {[%clk 0:00:59]}  axb4 {[%clk 0:00:45]} 34. cxb4 {[%clk 0:00:59]}  c5 {[%clk 0:00:42]} 35. b5 {[%clk 0:00:52]}  c4+ {[%clk 0:00:42]} 36. Kb4 {[%clk 0:00:51]}  c3 {[%clk 0:00:42]} 37. Rdc7 {[%clk 0:00:51]}  c2 {[%clk 0:00:34]} 38. a5 {[%clk 0:00:42]}  c1=Q {[%clk 0:00:30]} 39. Rxc1 {[%clk 0:00:42]}  Rxc1 {[%clk 0:00:30]} 40. a6 {[%clk 0:00:42]}  Rc2 {[%clk 0:00:20]} 41. a7 {[%clk 0:00:39]}  Rxg2 {[%clk 0:00:19]} 42. Rb8+ {[%clk 0:00:39]}  Kh7 {[%clk 0:00:17]} 43. Rxa8 {[%clk 0:00:39]}  Ra2 {[%clk 0:00:16]} 44. b6 {[%clk 0:00:38]}  Be7+ {[%clk 0:00:16]} 45. Kb5 {[%clk 0:00:38]}  Rb2+ {[%clk 0:00:15]} 46. Kc6 {[%clk 0:00:37]}  Ra2 {[%clk 0:00:10]} 47. b7 {[%clk 0:00:36]} 1-0


[Site "https://www.chess.com"]

[Event "Titled Tuesday Blitz November 08 Early 2022"]
[White "Tleptsok, Ruslan"]
[Black "Salinas Herrera, Pablo"]
[WhiteFideId "24104485"]
[BlackFideId "3407128"]
[WhiteElo "2130"]
[BlackElo "2557"]
[Result "0-1"]
[Round "09"]
[TimeControl "180+1"]
[Date "2022.11.08"]
[WhiteClock "0:00:04"]
[BlackClock "0:00:03"]

1. e4 {[%clk 0:03:00]}  c5 {[%clk 0:02:58]} 2. Nf3 {[%clk 0:03:00]}  e6 {[%clk 0:02:58]} 3. c3 {[%clk 0:03:01]}  d5 {[%clk 0:02:56]} 4. exd5 {[%clk 0:03:00]}  Qxd5 {[%clk 0:02:57]} 5. d4 {[%clk 0:03:01]}  Nf6 {[%clk 0:02:55]} 6. Be2 {[%clk 0:03:01]}  Be7 {[%clk 0:02:53]} 7. O-O {[%clk 0:03:01]}  O-O {[%clk 0:02:54]} 8. Be3 {[%clk 0:02:59]}  cxd4 {[%clk 0:02:52]} 9. cxd4 {[%clk 0:02:59]}  Nc6 {[%clk 0:02:50]} 10. Nc3 {[%clk 0:02:58]}  Qd6 {[%clk 0:02:50]} 11. h3 {[%clk 0:02:58]}  Rd8 {[%clk 0:02:49]} 12. Rc1 {[%clk 0:02:55]}  Bd7 {[%clk 0:02:46]} 13. a3 {[%clk 0:02:51]}  Rac8 {[%clk 0:02:46]} 14. Bd3 {[%clk 0:02:50]}  Qb8 {[%clk 0:02:41]} 15. Bb1 {[%clk 0:02:49]}  Be8 {[%clk 0:02:40]} 16. Re1 {[%clk 0:02:44]}  b5 {[%clk 0:02:37]} 17. Bg5 {[%clk 0:02:37]}  b4 {[%clk 0:02:34]} 18. axb4 {[%clk 0:02:30]}  Nxb4 {[%clk 0:02:35]} 19. Ne5 {[%clk 0:02:30]}  Qb6 {[%clk 0:02:26]} 20. Be3 {[%clk 0:02:27]}  Nbd5 {[%clk 0:02:10]} 21. Nxd5 {[%clk 0:02:26]}  Nxd5 {[%clk 0:02:08]} 22. Rxc8 {[%clk 0:02:25]}  Rxc8 {[%clk 0:02:04]} 23. Qd3 {[%clk 0:02:23]}  g6 {[%clk 0:02:02]} 24. Bc1 {[%clk 0:01:38]}  Qb4 {[%clk 0:01:45]} 25. Qe4 {[%clk 0:01:34]}  Nf6 {[%clk 0:01:41]} 26. Qe3 {[%clk 0:01:29]}  Nd5 {[%clk 0:01:39]} 27. Qe4 {[%clk 0:01:29]}  Bf6 {[%clk 0:01:11]} 28. g4 {[%clk 0:01:09]}  Bg7 {[%clk 0:01:05]} 29. g5 {[%clk 0:01:06]}  a5 {[%clk 0:01:01]} 30. h4 {[%clk 0:01:03]}  a4 {[%clk 0:00:58]} 31. h5 {[%clk 0:01:01]}  Qe7 {[%clk 0:00:41]} 32. f4 {[%clk 0:00:55]}  a3 {[%clk 0:00:37]} 33. h6 {[%clk 0:00:53]}  Bf8 {[%clk 0:00:34]} 34. bxa3 {[%clk 0:00:51]}  Nc3 {[%clk 0:00:32]} 35. Qd3 {[%clk 0:00:45]}  Bb5 {[%clk 0:00:25]} 36. Qc2 {[%clk 0:00:41]}  Qa7 {[%clk 0:00:19]} 37. Be3 {[%clk 0:00:29]}  Ne2+ {[%clk 0:00:15]} 38. Rxe2 {[%clk 0:00:29]}  Rxc2 {[%clk 0:00:15]} 39. Rxc2 {[%clk 0:00:27]}  Qxa3 {[%clk 0:00:16]} 40. Kf2 {[%clk 0:00:26]}  Qb3 {[%clk 0:00:16]} 41. Rc1 {[%clk 0:00:24]}  Ba6 {[%clk 0:00:14]} 42. Be4 {[%clk 0:00:22]}  Qb2+ {[%clk 0:00:13]} 43. Kg3 {[%clk 0:00:19]}  Qe2 {[%clk 0:00:11]} 44. Ng4 {[%clk 0:00:17]}  Be7 {[%clk 0:00:10]} 45. Bf3 {[%clk 0:00:15]}  Qd3 {[%clk 0:00:09]} 46. Rc7 {[%clk 0:00:15]}  Qa3 {[%clk 0:00:08]} 47. Ra7 {[%clk 0:00:12]}  e5 {[%clk 0:00:03]} 48. Ra8+ {[%clk 0:00:12]}  Bf8 {[%clk 0:00:03]} 49. Nf6+ {[%clk 0:00:12]}  Kh8 {[%clk 0:00:03]} 50. Nd7 {[%clk 0:00:12]}  Kg8 {[%clk 0:00:01]} 51. Nxf8 {[%clk 0:00:11]}  exf4+ {[%clk 0:00:01]} 52. Bxf4 {[%clk 0:00:10]}  f5 {[%clk 0:00:01]} 53. gxf6 {[%clk 0:00:10]}  Kf7 {[%clk 0:00:02]} 54. Be5 {[%clk 0:00:08]}  Qd3 {[%clk 0:00:01]} 55. Kf4 {[%clk 0:00:06]}  Bc4 {[%clk 0:00:01]} 56. Nd7 {[%clk 0:00:03]}  Qd2+ {[%clk 0:00:02]} 57. Kg3 {[%clk 0:00:02]}  Qg5+ {[%clk 0:00:03]} 58. Kf2 {[%clk 0:00:03]}  Qd2+ {[%clk 0:00:03]} 59. Kg3 {[%clk 0:00:03]}  Qg5+ {[%clk 0:00:04]} 60. Kf2 {[%clk 0:00:03]}  Qh4+ {[%clk 0:00:04]} 61. Ke3 {[%clk 0:00:03]}  Qe1+ {[%clk 0:00:04]} 62. Kf4 {[%clk 0:00:03]}  Qh4+ {[%clk 0:00:04]} 63. Ke3 {[%clk 0:00:03]}  Qxh6+ {[%clk 0:00:04]} 64. Kf2 {[%clk 0:00:03]}  Qh4+ {[%clk 0:00:04]} 65. Ke3 {[%clk 0:00:03]}  Qe1+ {[%clk 0:00:04]} 66. Kf4 {[%clk 0:00:04]}  Qh4+ {[%clk 0:00:04]} 67. Ke3 {[%clk 0:00:04]}  Qg5+ {[%clk 0:00:04]} 68. Kf2 {[%clk 0:00:04]}  Qd2+ {[%clk 0:00:04]} 69. Kg3 {[%clk 0:00:04]}  Qe1+ {[%clk 0:00:04]} 70. Kf4 {[%clk 0:00:04]}  g5+ {[%clk 0:00:03]} 0-1


[Site "https://www.chess.com"]